bitfinex/quotes_BTCUSD_20220218
["timestamp","ask_amount","ask_price","bid_price","bid_amount"]
[1645160469638,0.4451675,40578.0,40573.0,0.061644]
[1645160469841,0.0002202,40576.0,40573.0,0.061644]
[1645160470039,0.21824842,40575.0,40573.0,0.061644]
[1645160470241,0.009867,40575.0,40573.0,0.061644]
[1645160470441,0.0002202,40576.0,40573.0,0.061644]
[1645160470941,0.20860162,40577.0,40573.0,0.061644]
[1645160471241,0.0002202,40577.0,40573.0,0.061644]
[1645160471884,0.4305255,40578.0,40573.0,0.061644]
[1645160472284,0.00022046,40577.0,40573.0,0.061644]
[1645160472684,0.00022046,40577.0,40573.0,0.062644]
[1645160472890,0.00022046,40577.0,40573.0,0.112644]
[1645160473084,0.07214408,40578.0,40574.0,0.061635]
[1645160473285,0.07214408,40578.0,40575.0,0.05]
[1645160473484,0.00022046,40577.0,40575.0,0.33489205]
[1645160474084,0.00022046,40577.0,40575.0,0.05]
[1645160474288,0.07214408,40578.0,40573.0,0.061644]
[1645160474686,0.07236454,40578.0,40573.0,0.061644]
[1645160474884,0.002,40577.0,40573.0,0.061644]
[1645160475084,0.002,40577.0,40574.0,0.32398804]
[1645160475546,0.002,40577.0,40575.0,0.061633]
[1645160475735,0.002,40577.0,40575.0,0.111633]
[1645160477038,0.002,40577.0,40575.0,0.161633]
[1645160477235,0.07235709,40578.0,40575.0,0.299593]
[1645160477436,0.07235709,40578.0,40576.0,0.061618]
[1645160478036,0.07214408,40578.0,40576.0,0.061618]
[1645160478236,0.03783177,40585.0,40579.0,0.19251797]
[1645160478237,0.20838142,40583.0,40579.0,0.19251797]
[1645160478436,0.20838142,40584.0,40580.0,0.31294446]
[1645160478636,0.20838142,40584.0,40579.0,0.47736597]
[1645160478837,0.20838142,40584.0,40582.0,0.31779779]
[1645160479282,0.20838142,40584.0,40582.0,0.57449554]
[1645160479884,0.20838142,40583.0,40582.0,0.57449554]
[1645160480087,0.20838142,40584.0,40582.0,0.57449554]
[1645160480285,0.20838142,40583.0,40582.0,0.57449554]
[1645160480587,0.20838142,40583.0,40581.0,0.111618]
[1645160481184,0.1631849,40578.0,40577.0,0.36230328]
[1645160481385,0.1631849,40578.0,40577.0,0.0502]
[1645160481584,0.1631849,40578.0,40577.0,0.54148195]
[1645160482186,0.1631849,40578.0,40577.0,0.8499941]
[1645160482587,0.1631849,40578.0,40577.0,0.54218262]
[1645160483136,0.1631849,40578.0,40577.0,0.64218262]
[1645160483335,0.1631849,40578.0,40577.0,0.64738106]
[1645160483734,0.1631849,40578.0,40577.0,0.59738106]
[1645160484436,0.1631849,40578.0,40577.0,0.54988173]
[1645160485436,0.1730499,40578.0,40577.0,0.55508017]
[1645160485834,0.1631849,40578.0,40577.0,0.55508017]
[1645160486436,0.1631849,40578.0,40577.0,0.55678084]
[1645160486882,0.1631849,40578.0,40577.0,0.55778084]
[1645160487483,0.1631849,40578.0,40577.0,0.00269055]
[1645160487682,0.1631849,40578.0,40577.0,0.29668188]
[1645160488483,0.1631849,40578.0,40577.0,0.51512671]
[1645160489382,0.1730489,40578.0,40577.0,0.51512671]
[1645160489581,0.1730489,40578.0,40577.0,0.51682738]
[1645160489782,0.1631849,40578.0,40577.0,0.56682738]
[1645160490636,0.1631849,40578.0,40577.0,0.56852805]
[1645160490836,0.1631849,40578.0,40577.0,0.63015305]
[1645160491235,0.1631849,40578.0,40577.0,0.63115305]
[1645160491436,0.1631849,40578.0,40577.0,0.93976313]
[1645160491636,0.1631849,40578.0,40577.0,0.9414638]
[1645160492642,0.1631849,40578.0,40577.0,0.94666224]
[1645160492839,0.1631849,40578.0,40577.0,0.94566224]
[1645160493038,0.1631849,40578.0,40577.0,0.94766224]
[1645160493438,0.1730489,40578.0,40577.0,0.94766224]
[1645160493639,0.1730489,40578.0,40577.0,0.95286068]
[1645160493839,0.1631849,40578.0,40577.0,0.95286068]
[1645160494281,0.1631849,40578.0,40577.0,0.6442506]
[1645160494481,0.1631849,40578.0,40577.0,0.95286068]
[1645160494681,0.1631849,40578.0,40577.0,0.95805912]
[1645160495682,0.1631849,40578.0,40577.0,0.65114971]
[1645160495884,0.1631849,40578.0,40577.0,0.64614971]
[1645160496084,0.1631849,40578.0,40577.0,1.00275979]
[1645160496685,0.1631849,40578.0,40577.0,1.00446046]
[1645160497889,0.1631849,40578.0,40577.0,1.00616113]
[1645160498542,0.1631849,40578.0,40577.0,0.69755105]
[1645160498741,0.1631849,40578.0,40577.0,0.69925172]
[1645160499341,0.1631849,40578.0,40577.0,1.0078618]
[1645160499842,0.1631849,40578.0,40577.0,1.00956247]
[1645160500343,0.1631849,40578.0,40577.0,0.70095239]
[1645160500942,0.1631849,40578.0,40577.0,0.70465306]
[1645160501997,0.1631849,40578.0,40577.0,0.70635373]
[1645160502197,0.0661849,40578.0,40577.0,0.70435373]
[1645160502797,0.0661849,40578.0,40577.0,1.01239219]
[1645160502998,0.0661849,40578.0,40577.0,1.01759063]
[1645160503598,0.0661849,40578.0,40577.0,0.70955217]
[1645160503998,0.0661849,40578.0,40577.0,0.71475061]
[1645160504598,0.0661849,40578.0,40577.0,1.02278907]
[1645160505001,0.0661849,40578.0,40577.0,1.02798751]
[1645160506040,0.0661849,40578.0,40577.0,1.03318595]
[1645160506439,0.0661849,40578.0,40577.0,0.72514749]
[1645160507139,0.0661849,40578.0,40577.0,1.03838439]
[1645160508040,0.0661849,40578.0,40577.0,1.04358283]
[1645160509041,0.0661849,40578.0,40577.0,1.04878127]
[1645160509289,0.0611849,40578.0,40577.0,1.04878127]
[1645160509887,0.0611849,40578.0,40577.0,0.74074281]
[1645160510089,0.0611849,40578.0,40577.0,0.74244348]
[1645160511288,0.0611849,40578.0,40577.0,0.74764192]
[1645160512289,0.0611849,40578.0,40577.0,0.74934259]
[1645160513338,0.0611849,40578.0,40577.0,0.74414415]
[1645160514338,0.0611849,40578.0,40577.0,0.74764192]
[1645160515338,0.0611849,40578.0,40577.0,0.74414415]
[1645160516993,0.0611849,40578.0,40577.0,0.68251915]
[1645160517393,0.0611849,40578.0,40577.0,0.68601692]
[1645160517596,0.0611849,40578.0,40577.0,0.12578627]
[1645160518395,0.0611849,40578.0,40577.0,0.12748694]
[1645160518596,0.0611849,40578.0,40577.0,0.42040524]
[1645160519297,0.06103345,40578.0,40577.0,0.47040524]
[1645160519498,0.06103345,40578.0,40577.0,0.47390301]
[1645160520542,0.06103345,40578.0,40577.0,0.47040524]
[1645160520937,0.06103345,40578.0,40577.0,0.42040524]
[1645160521137,0.06103345,40578.0,40577.0,0.47240524]
[1645160522138,0.06103345,40578.0,40577.0,0.45240524]
[1645160522339,0.06103345,40578.0,40577.0,0.45040524]
[1645160522539,0.06103345,40578.0,40577.0,0.45560368]
[1645160522739,0.06103345,40578.0,40577.0,0.15578627]
[1645160523741,0.06103345,40578.0,40577.0,0.12578627]
[1645160523941,0.06103345,40578.0,40577.0,0.42922211]
[1645160524588,0.06103345,40578.0,40577.0,0.43092278]
[1645160524784,0.06103345,40578.0,40577.0,0.42922211]
[1645160525787,0.06103345,40578.0,40577.0,0.42572434]
[1645160526893,0.06103345,40578.0,40577.0,0.42922211]
[1645160527687,0.06103345,40578.0,40577.0,0.43092278]
[1645160527887,0.06103345,40578.0,40577.0,0.42572434]
[1645160528738,0.06103345,40578.0,40577.0,0.43092278]
[1645160528939,0.06103345,40578.0,40577.0,0.42572434]
[1645160529840,0.06103345,40578.0,40577.0,0.47922211]
[1645160531039,0.06103345,40578.0,40577.0,0.48122211]
[1645160531640,0.00021427,40580.0,40579.0,0.061612]
[1645160531889,0.00021427,40580.0,40579.0,0.06331267]
[1645160532094,0.03688866,40582.0,40579.0,0.11331267]
[1645160532291,0.03688866,40582.0,40580.0,1.14731715]
[1645160532292,0.00021426,40582.0,40580.0,1.14731715]
[1645160532593,0.009863,40585.0,40582.0,0.23064169]
[1645160532594,0.04601158,40585.0,40582.0,0.23064169]
[1645160532790,0.04601158,40585.0,40583.0,0.46771281]
[1645160532990,0.04601158,40585.0,40583.0,0.51771281]
[1645160533391,0.04601158,40585.0,40583.0,0.71855836]
[1645160533790,0.04601158,40585.0,40583.0,0.78016636]
[1645160533990,0.04601158,40585.0,40583.0,0.78186703]
[1645160534990,0.04601158,40585.0,40583.0,0.78706547]
[1645160535641,0.03614858,40585.0,40583.0,0.78706547]
[1645160536042,0.03614858,40585.0,40583.0,0.78876614]
[1645160537042,0.03614858,40585.0,40584.0,0.0492]
[1645160538943,0.03614858,40585.0,40584.0,0.0512]
[1645160539390,0.03095014,40585.0,40584.0,0.0512]
[1645160540792,0.03095014,40585.0,40584.0,0.0492]
[1645160543054,0.03095014,40585.0,40584.0,0.0392]
[1645160545059,0.03095014,40585.0,40584.0,0.0412]
[1645160546255,0.03095014,40585.0,40584.0,0.0392]
[1645160547104,0.01007528,40587.0,40584.0,0.0392]
[1645160547105,0.06007528,40587.0,40584.0,0.123234]
[1645160547300,0.2593222,40587.0,40584.0,0.123234]
[1645160547502,0.20910792,40586.0,40584.0,0.123234]
[1645160547705,0.25910792,40587.0,40584.0,0.123234]
[1645160548099,0.25932217,40587.0,40584.0,0.123234]
[1645160548800,0.05021425,40587.0,40584.0,0.123234]
[1645160549000,0.05,40587.0,40584.0,0.123234]
[1645160549200,0.009862,40586.0,40584.0,0.123234]
[1645160549600,0.05,40587.0,40584.0,0.123234]
[1645160551543,0.05,40587.0,40585.0,0.06162]
[1645160551944,0.05,40587.0,40585.0,0.12324]
[1645160553843,0.05,40587.0,40585.0,0.17324]
[1645160558744,0.05,40587.0,40585.0,0.184856]
[1645160558945,0.01007569,40588.0,40587.0,0.08561974]
[1645160559746,0.009861,40588.0,40587.0,0.08561974]
[1645160560346,0.00816033,40588.0,40587.0,0.08561974]
[1645160563042,0.00816033,40588.0,40587.0,0.08661974]
[1645160564043,0.00816033,40588.0,40587.0,0.38866814]
[1645160564447,0.00816033,40588.0,40587.0,0.38766814]
[1645160565043,0.00816033,40588.0,40587.0,0.38866814]
[1645160566448,0.00816033,40588.0,40587.0,0.38766814]
[1645160567046,0.00037015,40589.0,40588.0,0.06161]
[1645160567247,0.00021468,40590.0,40588.0,0.06161]
[1645160568248,0.00037015,40591.0,40590.0,0.22366659]
[1645160568452,0.009861,40592.0,40591.0,0.30528967]
[1645160568848,0.009861,40592.0,40591.0,0.27476071]
[1645160569287,0.009861,40592.0,40591.0,0.27576071]
[1645160570388,0.009861,40592.0,40591.0,0.27476071]
[1645160571190,0.009861,40592.0,40591.0,0.27576071]
[1645160571491,0.019722,40592.0,40591.0,0.27576071]
[1645160571892,0.009861,40592.0,40591.0,0.27576071]
[1645160572291,0.009861,40592.0,40591.0,0.27482506]
[1645160572491,0.009861,40592.0,40591.0,6.435e-05]
[1645160573344,0.009861,40592.0,40591.0,0.0001287]
[1645160573944,0.009861,40592.0,40591.0,0.00180104]
[1645160574344,0.009861,40592.0,40591.0,0.00186539]
[1645160574846,0.009861,40592.0,40591.0,0.00353773]
[1645160575145,0.009861,40592.0,40591.0,0.00453773]
[1645160575545,0.019722,40592.0,40591.0,0.00460208]
[1645160575946,0.019722,40592.0,40591.0,0.00627442]
[1645160576345,0.019722,40592.0,40591.0,0.00527442]
[1645160576549,0.019722,40592.0,40591.0,0.00533877]
[1645160576990,0.019722,40592.0,40591.0,0.00701111]
[1645160577192,0.019722,40592.0,40591.0,0.00801111]
[1645160577490,0.019722,40592.0,40591.0,0.00807546]
[1645160578195,0.019722,40592.0,40591.0,0.0097478]
[1645160578393,0.019722,40592.0,40591.0,0.0087478]
[1645160578592,0.019722,40592.0,40591.0,0.00881215]
[1645160579194,0.019722,40592.0,40591.0,0.01148449]
[1645160579594,0.019722,40592.0,40591.0,0.01154884]
[1645160580196,0.019722,40592.0,40591.0,0.01322118]
[1645160580396,0.019722,40592.0,40591.0,0.01222118]
[1645160580640,0.019722,40592.0,40591.0,0.01228553]
[1645160581242,0.019722,40592.0,40591.0,0.01395787]
[1645160581446,0.01802133,40592.0,40591.0,0.01395787]
[1645160581641,0.01802133,40592.0,40591.0,0.01402222]
[1645160582242,0.01802133,40592.0,40591.0,0.01569456]
[1645160582646,0.01802133,40592.0,40591.0,0.01575891]
[1645160583242,0.01802133,40592.0,40591.0,0.01743125]
[1645160583444,0.00802133,40592.0,40591.0,0.01743125]
[1645160583642,0.00802133,40592.0,40591.0,0.0174956]
[1645160584288,0.00802133,40592.0,40591.0,0.01916794]
[1645160584688,0.00802133,40592.0,40591.0,0.01923229]
[1645160585189,0.00802133,40592.0,40591.0,0.02023229]
[1645160585388,0.00802133,40592.0,40591.0,0.02190463]
[1645160585789,0.00802133,40592.0,40591.0,0.02196898]
[1645160586289,0.00802133,40592.0,40591.0,0.02364132]
[1645160587092,0.00802133,40592.0,40591.0,0.02264132]
[1645160587290,0.00802133,40592.0,40591.0,0.02431366]
[1645160587692,0.00802133,40592.0,40591.0,0.02437801]
[1645160587891,0.00802133,40592.0,40591.0,0.02431366]
[1645160588339,0.00802133,40592.0,40591.0,0.025986]
[1645160588739,0.00802133,40592.0,40591.0,0.08591866]
[1645160589140,0.00057108,40594.0,40592.0,0.07738409]
[1645160589141,0.00037015,40593.0,40592.0,0.07738409]
[1645160589343,0.00057108,40594.0,40592.0,0.13898709]
[1645160589538,0.00020093,40594.0,40592.0,0.13898709]
[1645160589740,0.00037015,40595.0,40592.0,0.13898709]
[1645160589945,0.45904041,40596.0,40593.0,0.061604]
[1645160590142,0.00057108,40595.0,40593.0,0.12320791]
[1645160590340,0.00020093,40595.0,40593.0,0.12320791]
[1645160590540,0.00057108,40595.0,40593.0,0.12320791]
[1645160590939,0.01023115,40595.0,40593.0,0.12320791]
[1645160591140,0.01023115,40595.0,40593.0,0.18581191]
[1645160591340,0.01023115,40595.0,40593.0,0.18044191]
[1645160591544,0.01023115,40595.0,40593.0,0.24204591]
[1645160591790,0.00037015,40595.0,40593.0,0.2437826]
[1645160591997,0.45924133,40596.0,40594.0,0.061602]
[1645160592192,0.00037015,40595.0,40594.0,0.1232037]
[1645160592392,0.45904041,40596.0,40594.0,0.1232037]
[1645160592792,0.45941056,40596.0,40594.0,0.1232037]
[1645160592992,0.14572928,40596.0,40594.0,0.1232037]
[1645160593193,0.14572928,40596.0,40594.0,0.1242037]
[1645160593392,0.04572928,40596.0,40594.0,0.1858057]
[1645160593892,0.04572928,40596.0,40594.0,0.16896183]
[1645160594092,0.04572928,40596.0,40594.0,0.10735983]
[1645160594497,0.04572928,40596.0,40594.0,0.10635983]
[1645160594895,0.05559028,40596.0,40594.0,0.10809652]
[1645160595093,0.04572928,40596.0,40594.0,0.10909652]
[1645160595940,0.04572928,40596.0,40594.0,0.11083321]
[1645160596339,0.04572928,40596.0,40594.0,0.10983321]
[1645160597044,0.04572928,40596.0,40594.0,0.1115699]
[1645160597240,0.04572928,40596.0,40594.0,0.1125699]
[1645160597442,0.04572928,40596.0,40594.0,0.0509682]
[1645160598042,0.04572928,40596.0,40594.0,0.05270489]
[1645160598443,0.04572928,40596.0,40594.0,0.05170489]
[1645160598643,0.05558928,40596.0,40594.0,0.05170489]
[1645160598842,0.05558928,40596.0,40594.0,0.11330746]
[1645160599045,0.04572928,40596.0,40594.0,0.11504415]
[1645160599294,0.04572928,40596.0,40594.0,0.11604415]
[1645160600095,0.04572928,40596.0,40594.0,0.11778084]
[1645160600496,0.04572928,40596.0,40594.0,0.10517827]
[1645160601093,0.04572928,40596.0,40594.0,0.10691496]
[1645160601696,0.04572928,40596.0,40594.0,0.05691496]
[1645160602097,0.04572928,40596.0,40594.0,0.05865165]
[1645160602302,0.04572928,40596.0,40594.0,0.01563021]
[1645160602496,0.05039084,40596.0,40592.0,0.04445837]
[1645160602896,0.04053084,40596.0,40592.0,0.04445837]
[1645160603149,0.04046649,40596.0,40594.0,0.00167234]
[1645160603351,0.040668,40596.0,40594.0,0.00167234]
[1645160604149,0.040668,40596.0,40594.0,0.00334468]
[1645160604352,0.04046649,40596.0,40594.0,0.00334468]
[1645160605154,0.04046649,40596.0,40594.0,0.00434468]
[1645160605554,0.03879415,40596.0,40594.0,0.00434468]
[1645160605953,0.04865515,40596.0,40594.0,0.00434468]
[1645160606154,0.03879415,40596.0,40594.0,0.00434468]
[1645160606355,0.03879415,40596.0,40594.0,0.00334468]
[1645160607291,0.03879415,40596.0,40595.0,0.00199405]
[1645160607496,0.038424,40596.0,40595.0,0.00199405]
[1645160609192,0.038424,40596.0,40595.0,0.00299405]
[1645160609793,0.048285,40596.0,40595.0,0.00299405]
[1645160610197,0.038424,40596.0,40595.0,0.00299405]
[1645160610391,0.038424,40596.0,40595.0,0.00199405]
[1645160610945,0.35210528,40596.0,40595.0,0.00199405]
[1645160611146,0.35210528,40596.0,40595.0,0.00299405]
[1645160611746,0.35210528,40596.0,40595.0,0.00200784]
[1645160613046,0.35210528,40596.0,40595.0,0.00100784]
[1645160613247,0.35087344,40596.0,40595.0,0.00200784]
[1645160613848,0.36073344,40596.0,40595.0,0.00200784]
[1645160614493,0.35087344,40596.0,40595.0,0.00200784]
[1645160615095,0.35087344,40596.0,40595.0,0.00100784]
[1645160615599,0.35093345,40596.0,40595.0,0.00100784]
[1645160616795,0.35093345,40596.0,40594.0,0.00513932]
[1645160616997,0.3513036,40596.0,40594.0,0.00513932]
[1645160617697,0.31368128,40595.0,40594.0,0.00513932]
[1645160618443,0.3513036,40596.0,40594.0,0.00513932]
[1645160618846,0.35093345,40596.0,40594.0,0.00513932]
[1645160619044,0.3513036,40596.0,40594.0,0.00513932]
[1645160619343,0.3513036,40596.0,40594.0,0.00613932]
[1645160619743,0.32321144,40596.0,40594.0,0.00613932]
[1645160619947,0.36596149,40595.0,40594.0,0.00613932]
[1645160620144,0.10276474,40595.0,40594.0,0.00613932]
[1645160620344,0.20276474,40595.0,40594.0,0.00613932]
[1645160620546,0.15356474,40595.0,40594.0,0.00513932]
[1645160621148,0.15556474,40595.0,40594.0,0.00513932]
[1645160621345,0.06542774,40595.0,40594.0,0.00513932]
[1645160621546,0.06542774,40595.0,40594.0,0.00334468]
[1645160621796,0.16462774,40595.0,40594.0,0.00334468]
[1645160622597,0.16257296,40595.0,40594.0,0.00334468]
[1645160623302,0.16457296,40595.0,40594.0,0.00334468]
[1645160623498,0.15937452,40595.0,40594.0,0.00334468]
[1645160624098,0.15931017,40595.0,40594.0,0.00334468]
[1645160624499,0.15731017,40595.0,40594.0,0.00334468]
[1645160625400,0.16717317,40595.0,40594.0,0.00334468]
[1645160625852,0.019726,40595.0,40594.0,0.00334468]
[1645160626246,0.009863,40595.0,40594.0,0.00334468]
[1645160626545,0.00819066,40595.0,40594.0,0.00440639]
[1645160626947,0.4986064,40596.0,40594.0,0.00440639]
[1645160627347,0.36591063,40595.0,40594.0,0.00440639]
[1645160627546,0.5986064,40596.0,40594.0,0.00440639]
[1645160627749,0.4986064,40596.0,40594.0,0.00440639]
[1645160627947,0.5986064,40596.0,40594.0,0.00440639]
[1645160628350,0.6602194,40596.0,40594.0,0.00440639]
[1645160630796,0.5986064,40596.0,40594.0,0.00440639]
[1645160631396,0.23269577,40596.0,40594.0,0.00440639]
[1645160631599,0.23269577,40596.0,40595.0,0.00103637]
[1645160631798,0.13232562,40596.0,40595.0,0.00103637]
[1645160632298,0.070712,40596.0,40595.0,0.00103637]
[1645160633145,0.43662263,40596.0,40595.0,0.00103637]
[1645160633345,0.53862263,40596.0,40595.0,0.00103637]
[1645160634548,0.53662263,40596.0,40595.0,0.00103637]
[1645160636544,0.59782168,40596.0,40595.0,0.00104749]
[1645160637099,0.60768368,40596.0,40595.0,0.00104749]
[1645160637499,0.23191105,40596.0,40595.0,0.00104749]
[1645160637901,0.13191105,40596.0,40595.0,0.00104749]
[1645160638102,0.49782168,40596.0,40595.0,0.00104749]
[1645160638301,0.59782168,40596.0,40595.0,0.00104749]
[1645160638705,0.23191105,40596.0,40595.0,0.00104749]
[1645160639103,0.59782168,40596.0,40595.0,0.00104749]
[1645160639303,0.59982168,40596.0,40595.0,0.00104749]
[1645160640202,0.59981192,40596.0,40595.0,0.00104749]
[1645160640557,0.38787621,40596.0,40595.0,0.00104749]
[1645160640760,0.28787621,40596.0,40595.0,0.00104749]
[1645160640958,0.38787621,40596.0,40595.0,0.00104749]
[1645160641159,0.39773821,40596.0,40595.0,0.00104749]
[1645160641362,0.38987621,40596.0,40594.0,0.00439217]
[1645160641559,0.48901928,40595.0,40594.0,0.00439217]
[1645160641762,0.63901928,40595.0,40594.0,0.00439217]
[1645160642558,0.273237,40595.0,40594.0,0.00439217]
[1645160642761,0.63901928,40595.0,40594.0,0.00439217]
[1645160643057,0.53901928,40595.0,40594.0,0.00439217]
[1645160643258,0.64101928,40595.0,40594.0,0.00439217]
[1645160644599,0.63731861,40595.0,40594.0,0.00439217]
[1645160644797,0.27153633,40595.0,40594.0,0.00439217]
[1645160644997,0.29126133,40595.0,40594.0,0.00439217]
[1645160645197,0.17147198,40595.0,40594.0,0.00439217]
[1645160646602,0.17147198,40595.0,40594.0,0.00271983]
[1645160647201,0.53725426,40595.0,40594.0,0.00271983]
[1645160647400,0.27147198,40595.0,40594.0,0.00271983]
[1645160647599,0.26979964,40595.0,40594.0,0.00271983]
[1645160647799,0.223237,40595.0,40594.0,0.00271983]
[1645160648245,0.242961,40595.0,40594.0,0.00271983]
[1645160648645,0.123237,40595.0,40594.0,0.00271983]
[1645160651047,0.173237,40595.0,40594.0,0.00271983]
[1645160652097,0.1831,40595.0,40594.0,0.00271983]
[1645160652500,0.173237,40595.0,40594.0,0.00271983]
[1645160653399,0.175237,40595.0,40594.0,0.00271983]
[1645160653799,0.507445,40595.0,40594.0,0.00271983]
[1645160654002,2.59797117,40595.0,40594.0,0.00271983]
[1645160654207,3.01542318,40595.0,40594.0,0.00271983]
[1645160654902,0.3513568,40595.0,40594.0,0.00271983]
[1645160655103,0.69091914,40595.0,40594.0,0.00271983]
[1645160655553,0.325237,40595.0,40594.0,0.00271983]
[1645160655950,0.69091914,40595.0,40594.0,0.00271983]
[1645160656148,0.70078114,40595.0,40594.0,0.00271983]
[1645160656350,0.69091914,40595.0,40594.0,0.00271983]
[1645160656547,0.68891914,40595.0,40594.0,0.00271983]
[1645160659808,0.69878114,40595.0,40594.0,0.00271983]
[1645160660209,0.68891914,40595.0,40594.0,0.00271983]
[1645160661208,0.63891914,40595.0,40594.0,0.00271983]
[1645160663253,0.69142045,40595.0,40594.0,0.00271983]
[1645160663455,0.35921245,40595.0,40594.0,0.00271983]
[1645160663651,0.34935045,40595.0,40594.0,0.00271983]
[1645160665054,0.24935045,40595.0,40594.0,0.00271983]
[1645160665255,0.34935045,40595.0,40594.0,0.00271983]
[1645160665556,0.34415201,40595.0,40594.0,0.00271983]
[1645160666154,0.33915201,40595.0,40594.0,0.00271983]
[1645160666356,0.23908766,40595.0,40594.0,0.00271983]
[1645160666556,0.33908766,40595.0,40594.0,0.00271983]
[1645160667403,0.34108766,40595.0,40594.0,0.00271983]
[1645160667698,0.34108766,40595.0,40594.0,0.00104749]
[1645160668699,0.38941532,40595.0,40594.0,0.00104749]
[1645160668900,0.38700532,40595.0,40594.0,0.00104749]
[1645160669099,0.28700532,40595.0,40594.0,0.00104749]
[1645160669300,0.38700532,40595.0,40594.0,0.00104749]
[1645160669501,0.38900532,40595.0,40594.0,0.00104749]
[1645160670401,0.28900532,40595.0,40594.0,0.00104749]
[1645160670646,0.38700532,40595.0,40594.0,0.00104749]
[1645160670850,0.33700532,40595.0,40594.0,0.00104749]
[1645160671049,0.34686732,40595.0,40594.0,0.00104749]
[1645160671246,0.33700532,40595.0,40594.0,0.00104749]
[1645160671447,0.33700532,40595.0,40593.0,0.0020765]
[1645160671648,0.24638333,40594.0,40593.0,0.0020765]
[1645160672453,0.58591647,40594.0,40593.0,0.0020765]
[1645160672652,0.24638767,40594.0,40593.0,0.0020765]
[1645160672850,0.34638767,40594.0,40593.0,0.0020765]
[1645160673048,0.68592168,40594.0,40593.0,0.0020765]
[1645160673249,0.12611741,40594.0,40593.0,0.0020765]
[1645160673850,0.02611741,40594.0,40593.0,0.0020765]
[1645160674297,0.28431595,40594.0,40593.0,0.0020765]
[1645160676599,0.28431595,40594.0,40593.0,0.00104845]
[1645160677499,0.28631595,40594.0,40593.0,0.00104845]
[1645160678547,0.28431595,40594.0,40593.0,0.00104845]
[1645160678746,0.29417795,40594.0,40593.0,0.00104845]
[1645160681350,0.29617795,40594.0,40593.0,0.00104845]
[1645160681550,0.29617795,40594.0,40592.0,0.01802176]
[1645160681795,0.36562837,40593.0,40592.0,0.01802176]
[1645160682397,0.011862,40594.0,40592.0,0.01802176]
[1645160682600,0.009862,40594.0,40592.0,0.01802176]
[1645160682798,0.009862,40594.0,40593.0,0.0492]
[1645160683000,0.00020152,40595.0,40594.0,0.01972399]
[1645160683196,0.00020152,40595.0,40594.0,0.30998776]
[1645160683599,0.00037134,40598.0,40594.0,0.30998776]
[1645160683796,0.0094,40604.0,40594.0,0.30998776]
[1645160683797,0.00020151,40597.0,40594.0,0.30998776]
[1645160683997,0.00020151,40597.0,40594.0,0.55087451]
[1645160684398,0.00020151,40597.0,40595.0,0.3]
[1645160684598,0.00020151,40597.0,40595.0,0.423204]
[1645160684798,0.00037134,40601.0,40596.0,0.3]
[1645160684997,0.00037134,40598.0,40596.0,0.3]
[1645160685197,0.00020151,40598.0,40596.0,0.3]
[1645160686054,0.00037134,40603.0,40601.0,0.29386547]
[1645160686253,0.00977134,40604.0,40601.0,0.29386547]
[1645160686453,0.00037134,40603.0,40601.0,0.29386547]
[1645160686653,0.061606,40602.0,40601.0,0.29386547]
[1645160686855,0.00807067,40604.0,40601.0,0.29386547]
[1645160687053,0.00037134,40603.0,40596.0,0.3]
[1645160687254,0.00037134,40606.0,40596.0,0.3]
[1645160687455,0.00020149,40605.0,40596.0,0.3]
[1645160687756,0.061604,40604.0,40596.0,0.3]
[1645160687954,0.06197534,40604.0,40596.0,0.361602]
[1645160688555,0.061604,40604.0,40603.0,0.31922096]
[1645160688755,0.393812,40604.0,40603.0,0.31922096]
[1645160689156,0.493812,40604.0,40603.0,0.31922096]
[1645160689597,0.161604,40604.0,40603.0,0.31922096]
[1645160690198,0.061604,40604.0,40603.0,0.31922096]
[1645160690398,0.403672,40604.0,40603.0,0.31922096]
[1645160690600,0.171464,40604.0,40603.0,0.31922096]
[1645160690804,0.161604,40604.0,40603.0,0.31922096]
[1645160691402,0.1,40604.0,40603.0,0.31922096]
[1645160691601,0.1,40604.0,40603.0,0.32090413]
[1645160691804,0.06197234,40605.0,40603.0,0.38250513]
[1645160692001,0.332208,40604.0,40603.0,0.32090413]
[1645160692200,0.12320438,40605.0,40603.0,0.32090413]
[1645160692402,0.332208,40604.0,40603.0,0.32090413]
[1645160692601,0.332208,40604.0,40603.0,0.00168317]
[1645160692802,0.432208,40604.0,40603.0,0.00168317]
[1645160694648,0.442067,40604.0,40603.0,0.00168317]
[1645160694848,0.432208,40604.0,40603.0,0.00168317]
[1645160695248,0.1,40604.0,40603.0,0.00168317]
[1645160695449,0.12357572,40605.0,40603.0,0.00268317]
[1645160695652,0.332208,40604.0,40603.0,0.00268317]
[1645160695851,0.1,40604.0,40603.0,0.00268317]
[1645160696351,0.1,40604.0,40603.0,0.00375554]
[1645160696551,0.1,40604.0,40603.0,0.00316632]
[1645160696799,0.095,40604.0,40603.0,0.00216632]
[1645160696999,0.332208,40604.0,40603.0,0.00216632]
[1645160697200,0.06197234,40605.0,40603.0,0.06376732]
[1645160697400,0.332208,40604.0,40603.0,0.06376732]
[1645160697600,0.06197234,40605.0,40603.0,0.06376732]
[1645160698000,0.06197234,40605.0,40603.0,0.00216632]
[1645160698199,0.332208,40604.0,40603.0,0.00216632]
[1645160698400,0.1,40604.0,40603.0,0.00216632]
[1645160698601,0.432208,40604.0,40603.0,0.00216632]
[1645160699401,0.1,40604.0,40603.0,0.00216632]
[1645160699801,0.06197234,40605.0,40603.0,0.00216632]
[1645160700649,0.332208,40604.0,40603.0,0.00216632]
[1645160700850,0.432208,40604.0,40603.0,0.00216632]
[1645160702654,0.442067,40604.0,40603.0,0.00216632]
[1645160702853,0.432208,40604.0,40603.0,0.00216632]
[1645160703655,0.1,40604.0,40603.0,0.00216632]
[1645160703855,0.332208,40604.0,40603.0,0.00216632]
[1645160704303,0.432208,40604.0,40603.0,0.00216632]
[1645160706000,0.1,40604.0,40603.0,0.00216632]
[1645160706403,0.009859,40604.0,40603.0,0.00216632]
[1645160706705,0.332208,40604.0,40603.0,0.00216632]
[1645160706900,0.432208,40604.0,40603.0,0.00216632]
[1645160707501,0.432208,40604.0,40603.0,0.00316632]
[1645160707702,0.43050733,40604.0,40603.0,0.00316632]
[1645160708350,0.09829933,40604.0,40603.0,0.00316632]
[1645160708853,0.00037134,40605.0,40603.0,0.06376532]
[1645160709050,0.00020148,40606.0,40603.0,0.06376532]
[1645160709255,0.33240948,40606.0,40603.0,0.00216632]
[1645160709550,0.332208,40605.0,40603.0,0.00316632]
[1645160709749,0.11006048,40606.0,40603.0,0.00316632]
[1645160710049,0.50646299,40605.0,40603.0,0.00316632]
[1645160710249,0.40609165,40605.0,40603.0,0.00316632]
[1645160710451,0.50646299,40605.0,40603.0,0.00316632]
[1645160710650,0.332208,40604.0,40603.0,0.00316632]
[1645160710849,0.432208,40604.0,40603.0,0.00316632]
[1645160711047,0.1,40604.0,40603.0,0.00316632]